bitfinex/quotes_ETHUSD_20240614
["timestamp","ask_amount","ask_price","bid_price","bid_amount"]
[1718375479223,2.94576185,3479.6,3478.8,2.3364]
[1718375479423,2.87405,3479.5,3478.8,2.3364]
[1718375479752,2.8744,3479.0,3477.9,2.3164]
[1718375479911,0.07186343,3478.9,3477.9,2.3164]
[1718375480111,2.8744,3479.0,3477.9,2.3164]
[1718375480340,0.07186345,3478.9,3477.9,2.3164]
[1718375480565,2.87455,3478.8,3477.9,2.3164]
[1718375480721,3.0,3479.1,3477.9,2.54804]
[1718375480927,3.07186344,3479.0,3477.9,2.54804]
[1718375481161,3.0,3479.0,3477.9,2.54804]
[1718375481557,0.07186346,3478.9,3477.9,2.54804]
[1718375482240,5.8744,3479.0,3478.0,0.05749309]
[1718375482241,3.0,3479.0,3478.0,0.05749309]
[1718375482431,3.0,3479.0,3478.1,0.26055331]
[1718375484376,2.87462,3478.8,3477.9,2.3164]
[1718375484532,0.07186997,3478.7,3477.9,2.3164]
[1718375484734,5.94650997,3478.7,3477.9,2.3164]
[1718375485031,2.87473,3478.6,3477.2,2.4155]
[1718375485231,0.07187492,3478.5,3477.3,1.97499514]
[1718375485424,5.94667492,3478.5,3477.3,1.97499514]
[1718375486548,5.94667492,3478.5,3477.4,0.55]
[1718375486864,3.0,3478.7,3477.5,1.4909451]
[1718375487072,3.0,3479.1,3478.0,2.3573]
[1718375487240,3.0,3479.6,3478.2,2.87503]
[1718375487433,2.87381,3479.7,3478.3,0.60748406]
[1718375487629,2.94566511,3479.7,3478.4,0.66429592]
[1718375487835,2.94566511,3479.7,3478.5,0.0574841]
[1718375488592,5.8739,3479.6,3478.5,0.0574841]
[1718375488771,3.0,3479.6,3478.5,0.0574841]
[1718375488968,0.07185516,3479.5,3478.5,0.0574841]
[1718375489170,0.07185516,3479.5,3478.5,0.32800662]
[1718375489352,3.0,3479.4,3478.5,0.32800662]
[1718375489987,3.0,3479.3,3478.5,0.32800662]
[1718375490188,5.87415,3479.3,3478.1,1.727]
[1718375490491,2.87432,3479.1,3478.0,2.3573]
[1718375490677,0.07186349,3479.0,3478.0,2.3573]
[1718375490987,5.87414,3479.3,3478.1,0.05749079]
[1718375491215,2.9461135,3479.2,3478.1,0.05749079]
[1718375491375,2.9461135,3479.2,3478.2,0.24147908]
[1718375491701,2.9461135,3479.2,3478.3,0.0574908]
[1718375491890,2.9461135,3479.2,3478.2,0.24147908]
[1718375492056,2.87431,3479.1,3478.2,0.24147908]
[1718375492379,3.0,3479.0,3478.2,0.24147908]
[1718375492778,3.0,3479.0,3478.0,2.3573]
[1718375492779,0.07186355,3478.9,3478.0,2.3573]
[1718375492993,2.94635355,3478.9,3478.0,2.3573]
[1718375493164,2.94635355,3478.9,3477.6,2.44552751]
[1718375493165,5.87457,3478.8,3477.6,0.71852751]
[1718375493501,5.87484,3478.5,3477.4,2.3744]
[1718375493718,0.07187583,3478.4,3477.4,2.3744]
[1718375494654,2.94677583,3478.4,3477.4,2.3744]
[1718375495282,0.07187583,3478.4,3477.4,2.3744]
[1718375495517,2.87513,3478.1,3477.4,2.3744]
[1718375495715,0.07188406,3478.0,3476.9,2.3806]
[1718375496033,2.87547,3477.7,3476.9,2.3806]
[1718375496190,3.0,3477.7,3476.9,2.3806]
[1718375496521,2.87563,3477.5,3476.9,2.3806]
[1718375496738,2.94760336,3477.4,3476.4,0.45003748]
[1718375496902,2.87589,3477.2,3476.4,0.45003748]
[1718375497225,2.94787024,3477.1,3476.3,2.2905]
[1718375497408,2.87605,3477.0,3476.3,2.2905]
[1718375497594,0.07190461,3476.9,3476.3,2.2905]
[1718375497936,0.07190461,3476.9,3474.9,10.09776]
[1718375497937,2.87628,3476.8,3475.5,1.727]
[1718375498217,2.87628,3476.8,3475.6,1.43344514]
[1718375498218,0.07191034,3476.7,3475.6,1.43344514]
[1718375498419,3.07191034,3476.7,3475.6,1.43344514]
[1718375498727,0.07191034,3476.7,3475.6,1.43344514]
[1718375499226,2.87641,3476.6,3475.4,2.4102]
[1718375499393,3.07191532,3476.5,3475.5,0.24102]
[1718375499584,3.0,3476.4,3475.5,0.24102]
[1718375500052,3.0,3476.4,3475.6,0.05753226]
[1718375500330,3.0,3476.4,3475.5,0.24102]
[1718375500513,3.0,3476.4,3475.6,0.265122]
[1718375503040,0.07191539,3476.3,3475.4,2.4102]
[1718375503211,3.0,3476.1,3474.9,2.4065]
[1718375503414,2.87696,3475.9,3474.9,2.4065]
[1718375503628,3.0,3476.0,3474.9,2.4065]
[1718375503895,0.07192763,3475.9,3475.0,0.24065]
[1718375504138,3.07192763,3475.9,3475.0,0.24065]
[1718375504298,0.07192763,3475.9,3475.0,0.24065]
[1718375504637,3.07192763,3476.0,3475.0,0.24065]
[1718375506027,3.0,3476.0,3475.1,0.05754659]
[1718375506320,0.07192767,3475.9,3475.2,0.27046966]
[1718375506526,0.07192767,3475.9,3475.3,0.05754213]
[1718375506732,0.07192767,3475.9,3474.4,1.727]
[1718375506953,2.87719,3475.7,3474.4,1.727]
[1718375507117,0.07193617,3475.6,3474.0,2.87852]
[1718375507311,3.07193617,3475.6,3474.1,4.84966714]
[1718375507518,2.8773,3475.5,3474.1,1.97123714]
[1718375507724,0.07193856,3475.4,3474.1,3.69823714]
[1718375507949,2.87753,3475.2,3474.1,0.537792]
[1718375508130,5.94956427,3475.1,3473.9,2.4994]
[1718375508454,3.0,3474.9,3473.9,2.4994]
[1718375508660,2.87818,3474.5,3473.5,1.151505]
[1718375508827,0.07196438,3474.4,3473.5,1.151505]
[1718375509027,3.07196438,3474.4,3473.5,1.151505]
[1718375509224,6.54515382,3474.4,3473.5,1.151505]
[1718375509651,2.87836,3474.2,3473.5,1.151505]
[1718375509851,6.54515382,3474.4,3473.5,1.151505]
[1718375509852,6.07196776,3474.1,3473.5,1.151505]
[1718375510011,3.07196776,3474.1,3473.0,0.1259951]
[1718375510217,3.07196776,3474.1,3473.1,0.0575767]
[1718375510750,3.07196776,3474.1,3473.1,0.05757666]
[1718375510751,3.95476448,3474.1,3473.1,0.05757666]
[1718375511342,3.0,3473.7,3473.0,0.1259951]
[1718375511521,0.07197767,3473.6,3473.0,0.1259951]
[1718375511922,3.07197767,3473.6,3473.0,0.1259951]
[1718375512647,3.0,3473.3,3473.0,0.1259951]
[1718375512866,0.07198568,3473.2,3473.0,0.1259951]
[1718375513574,1.50543082,3473.2,3473.0,0.1259951]
[1718375513895,3.0,3472.8,3472.0,3.6936271]
[1718375514016,3.07199387,3472.7,3472.0,3.6936271]
[1718375514217,3.67919326,3472.7,3472.0,3.6936271]
[1718375514618,5.1126384,3472.7,3472.0,3.6936271]
[1718375515753,3.0,3472.4,3472.0,3.6936271]
[1718375516080,0.07200459,3472.3,3472.0,3.6936271]
[1718375516218,3.0,3472.4,3472.0,3.6936271]
[1718375516219,0.07200906,3472.2,3472.0,3.6936271]
[1718375517485,3.0,3472.4,3472.0,3.6936271]
[1718375518002,0.07200443,3472.3,3472.0,3.6936271]
[1718375518267,5.01026508,3472.4,3472.0,3.6936271]
[1718375518268,0.07200768,3472.2,3472.0,3.6936271]
[1718375518428,3.66645282,3472.2,3472.0,3.6936271]
[1718375519067,2.23300768,3472.2,3472.0,3.6936271]
[1718375519248,3.0,3472.8,3472.0,3.6936271]
[1718375519557,3.0,3472.8,3472.1,0.42695617]
[1718375519930,0.07199195,3472.7,3472.1,0.36936271]
[1718375520261,0.07199195,3472.7,3472.0,3.6936271]
[1718375521023,3.0,3473.2,3472.2,2.88001]
[1718375521267,3.0,3473.2,3472.3,0.05759161]
[1718375521546,3.0,3473.7,3472.0,3.6936271]
[1718375521874,3.0,3472.8,3472.0,3.6936271]
[1718375522159,0.07199653,3472.7,3472.0,4.31145981]
[1718375522380,0.07199653,3472.7,3472.0,3.6936271]
[1718375522529,3.0,3472.4,3472.0,3.6936271]
[1718375522728,3.0,3472.9,3472.0,3.6936271]
[1718375522962,3.07199784,3472.9,3472.0,3.6936271]
[1718375523181,6.0,3473.3,3472.2,2.352]
[1718375523334,3.0,3473.3,3472.5,2.87975]
[1718375523639,3.0,3473.3,3472.3,0.89832954]
[1718375523640,0.07198617,3473.2,3472.3,0.89832954]
[1718375524025,3.0,3473.7,3472.5,2.87976]
[1718375524269,0.07197894,3473.6,3472.6,2.93719315]
[1718375524427,0.07197894,3473.6,3472.7,0.58169531]
[1718375524627,0.07197894,3473.6,3472.8,0.05758315]
[1718375524827,3.0,3473.7,3472.9,2.8794]
[1718375525030,3.0,3473.7,3473.0,0.05758156]
[1718375525324,3.0,3473.7,3473.1,2.87926]
[1718375525565,3.0,3473.7,3472.9,2.87938]
[1718375525566,3.0,3473.7,3473.2,0.50890463]
[1718375525798,2.87,3474.3,3473.3,0.0575757]
[1718375526103,9.431,3474.9,3473.3,0.0575757]
[1718375526104,0.07196896,3474.2,3473.4,2.87894]
[1718375526276,9.431,3474.9,3473.8,2.87868]
[1718375526277,3.0,3474.7,3473.8,2.87868]
[1718375526483,0.0719581,3474.6,3473.7,2.87876]
[1718375526691,0.0719581,3474.6,3473.8,0.0575666]
[1718375527193,2.161,3475.4,3473.8,0.0575666]
[1718375527390,1.50539647,3475.3,3474.2,2.87835]
[1718375527608,3.0,3475.4,3474.3,2.31276061]
[1718375527808,3.0,3475.6,3474.3,2.31276061]
[1718375528006,0.3,3475.5,3474.4,2.87819]
[1718375528208,2.94881128,3476.0,3474.4,2.87819]
[1718375528209,0.07194128,3476.0,3474.6,2.87802]
[1718375528380,3.0,3475.7,3474.7,0.05755232]
[1718375528701,3.0,3475.7,3474.7,2.93549232]
[1718375528702,0.0719404,3475.6,3474.7,2.93549232]
[1718375528904,3.0,3476.0,3474.8,2.93539232]
[1718375529104,0.07193564,3475.9,3474.9,2.87778]
[1718375529305,0.07193564,3475.9,3475.0,2.87769]
[1718375529306,3.0,3475.9,3475.0,2.87769]
[1718375529513,2.4487,3476.4,3474.9,0.37504702]
[1718375529727,3.0,3475.6,3473.9,2.87857]
[1718375530016,2.87705,3475.8,3473.8,2.87864]
[1718375530017,3.0,3475.1,3473.8,2.87864]
[1718375530179,3.0,3475.1,3473.7,5.878531]
[1718375530180,3.0,3474.7,3473.7,2.999771]
[1718375530373,3.0,3474.7,3473.1,2.87926]
[1718375530374,1.50540209,3474.6,3473.1,2.424]
[1718375530577,4.50540209,3474.6,3473.1,2.424]
[1718375530782,0.07195695,3474.6,3473.5,2.87886]
[1718375531112,3.0,3474.7,3473.7,2.87876]
[1718375531314,3.0,3474.7,3473.2,3.16044514]
[1718375531315,3.0,3475.4,3474.2,2.87834]
[1718375531536,3.0,3475.4,3474.4,2.87819]
[1718375531672,3.0,3475.9,3474.6,1.727]
[1718375531977,12.18,3478.0,3474.5,0.05754737]
[1718375531978,3.0,3476.9,3475.5,4.60427]
[1718375532172,3.0,3476.5,3476.0,0.028]
[1718375532378,3.0,3476.1,3476.0,0.028]
[1718375532597,3.30719213,3476.1,3476.0,0.028]
[1718375532800,1.43344514,3476.5,3476.0,0.028]
[1718375532801,3.0,3476.5,3476.0,0.028]
[1718375533582,0.07191777,3476.4,3476.0,0.028]
[1718375534487,3.0,3476.1,3476.0,0.028]
[1718375535096,10.31022514,3476.1,3476.0,0.028]
[1718375535283,3.0,3476.2,3476.0,0.028]
[1718375535478,0.07192486,3476.1,3476.0,0.028]
[1718375535678,3.25589735,3476.1,3476.0,0.028]
[1718375535875,4.68934249,3476.1,3476.0,0.028]
[1718375536133,7.68934249,3476.1,3476.0,0.028]
[1718375536686,10.56612249,3476.1,3476.0,0.028]
[1718375537317,18.48068249,3476.1,3476.0,0.028]
[1718375537698,3.0,3474.9,3473.7,2.359]
[1718375537923,0.07195437,3474.8,3473.7,2.359]
[1718375538230,0.07195433,3474.7,3473.7,2.359]
[1718375539553,0.07195433,3474.7,3473.7,2.34528836]
[1718375540857,2.87803,3474.6,3473.0,2.87931]
[1718375541068,2.95008264,3474.5,3473.0,1.43344514]
[1718375541384,0.72615578,3474.4,3473.1,0.60398751]
[1718375541559,0.07196452,3474.3,3473.1,0.60398751]
[1718375541928,0.07196452,3474.3,3472.8,4.60644]
[1718375542129,0.07196452,3474.3,3473.3,2.87908]
[1718375542363,2.4747,3475.2,3473.7,2.87876]
[1718375542555,2.4747,3475.2,3473.4,3.71044514]
[1718375542556,2.87753,3475.2,3473.6,2.4494]
[1718375542751,3.0,3475.2,3473.7,4.31220514]
[1718375542955,3.887728,3475.2,3473.8,0.84886051]
[1718375543360,0.07195046,3475.1,3473.9,0.05756037]
[1718375543562,0.001731,3473.9,3473.8,0.84886051]
[1718375543765,0.001731,3473.9,3473.6,2.4494]
[1718375544585,0.001731,3473.9,3473.0,2.3422]
[1718375544778,0.001731,3473.9,3473.1,2.87924]
[1718375545178,0.001731,3473.9,3473.2,2.93675245]
[1718375545411,0.001731,3473.9,3471.7,1.1087685]
[1718375545712,1.43344514,3473.8,3472.3,2.4181]
[1718375545867,0.07198348,3473.7,3472.3,2.4181]
[1718375546072,4.38423862,3473.7,3472.3,2.4181]
[1718375546409,2.87897,3473.5,3472.3,2.4181]
[1718375546558,0.07198346,3473.4,3472.4,0.48269021]
[1718375547206,0.07198346,3473.4,3472.5,0.05758677]
[1718375547791,0.07198323,3473.6,3472.5,0.05758677]
[1718375547988,0.07198323,3473.6,3472.3,2.4181]
[1718375547989,2.87911,3473.3,3472.3,2.4181]
[1718375548180,0.07198682,3473.2,3472.1,0.97535692]
[1718375551000,0.07198618,3473.1,3472.1,0.97535692]
[1718375551167,3.0,3473.0,3472.1,0.97535692]
[1718375551367,0.07198912,3472.9,3472.1,0.97535692]
[1718375551575,0.07198912,3472.9,3472.0,3.6936271]
[1718375551576,2.87954,3472.8,3472.0,3.6936271]
[1718375551812,2.95162848,3472.7,3472.0,3.6936271]
[1718375551977,0.07199848,3472.7,3472.0,3.6936271]
[1718375552507,2.95159848,3472.7,3472.0,3.6936271]
[1718375552712,0.07199848,3472.7,3472.0,3.6936271]
[1718375552896,5.87935,3473.0,3472.0,3.6936271]
[1718375552897,2.95151853,3472.8,3472.0,3.6936271]
[1718375553064,0.07199853,3472.7,3472.0,3.6936271]
[1718375553271,2.95160853,3472.7,3472.0,3.6936271]
[1718375553511,0.07199853,3472.7,3472.0,3.6936271]
[1718375553821,2.87992,3472.4,3472.0,3.6936271]
[1718375553998,0.07200505,3472.3,3472.0,3.6936271]
[1718375554310,2.95196505,3472.3,3472.0,3.6936271]
[1718375554512,3.07200505,3472.2,3472.0,3.6936271]
[1718375554709,5.7602,3472.1,3472.0,3.6936271]
[1718375554880,7.07476102,3472.1,3472.0,3.6936271]
[1718375555208,8.50820616,3472.1,3472.0,3.6936271]
[1718375555531,4.19466102,3472.1,3472.0,3.6936271]
[1718375556007,3.0,3472.2,3472.0,3.6936271]
[1718375556769,6.0,3472.6,3472.0,3.6936271]
[1718375557028,3.0,3472.1,3472.0,3.6936271]
[1718375557382,10.19364514,3472.1,3472.0,3.6936271]
[1718375557580,13.19364514,3472.1,3472.0,3.6936271]
[1718375557818,15.04847765,3472.1,3472.0,3.6936271]
[1718375559532,15.04847765,3472.1,3470.3,1.727]
[1718375559533,2.88036,3471.8,3470.3,1.727]
[1718375559694,0.07201956,3471.7,3470.4,0.55]
[1718375560097,3.07201956,3471.7,3470.4,0.55]
[1718375560286,3.0,3471.5,3469.9,1.727]
[1718375560616,3.07201956,3471.7,3470.2,2.3749]
[1718375560617,3.07202786,3471.4,3470.2,2.3749]
[1718375560923,3.07202786,3471.4,3470.2,3.80834514]
[1718375561310,5.95270786,3471.4,3470.2,3.80834514]
[1718375561510,3.0,3471.1,3470.3,1.43344514]
[1718375561726,3.0,3471.4,3470.4,0.38083451]
[1718375561887,0.07203038,3471.3,3470.2,2.3749]
[1718375562220,0.07203038,3471.3,3469.7,4.23058158]
[1718375562221,2.88128,3470.7,3469.7,4.23058158]
[1718375562383,3.0,3471.1,3469.7,4.23058158]
[1718375562583,1.50548502,3471.0,3469.7,3.77960288]
[1718375562827,2.88137,3470.6,3469.7,3.77960288]
[1718375563037,2.88151,3470.4,3469.7,3.77960288]
[1718375563305,2.88183,3470.1,3469.7,3.77960288]
[1718375563448,0.07205073,3470.0,3469.7,3.77960288]
[1718375563872,0.07205069,3470.2,3469.7,3.77960288]
[1718375564076,2.95375069,3470.2,3469.7,3.77960288]
[1718375564355,3.53727576,3470.2,3469.7,3.77960288]
[1718375564654,3.0,3470.1,3469.7,3.77960288]
[1718375564967,3.0,3470.2,3469.7,3.77960288]
[1718375565260,0.07204757,3470.1,3469.7,3.77960288]
[1718375566325,2.95381757,3470.1,3469.7,3.77960288]
[1718375566542,2.88185,3470.0,3469.7,3.77960288]
[1718375566737,0.07205332,3469.9,3469.7,3.77960288]
[1718375567054,3.0,3470.2,3469.7,3.77960288]
[1718375567279,2.95381898,3470.1,3469.7,3.77960288]
[1718375567448,0.07204898,3470.1,3469.7,3.77960288]
[1718375568429,0.07204899,3470.2,3469.7,3.77960288]
[1718375569255,3.26093389,3470.2,3469.7,3.77960288]
[1718375569562,2.88176,3470.1,3469.7,3.77960288]
[1718375569762,0.07205342,3470.0,3469.7,3.77960288]
[1718375570426,0.07205342,3470.1,3469.7,3.77960288]
[1718375570625,3.0,3469.8,3469.7,3.77960288]
[1718375571058,13.66765114,3469.8,3469.7,3.77960288]
[1718375571268,16.07935114,3469.8,3469.7,3.77960288]
[1718375571471,19.07935114,3469.8,3469.7,3.77960288]
[1718375571642,21.96136114,3469.8,3469.7,3.77960288]
[1718375571834,21.96136114,3469.8,3467.3,6.74684485]
[1718375571835,3.0,3468.7,3467.3,3.86283485]
[1718375572032,3.0,3468.7,3467.3,5.29627999]
[1718375572033,0.07208886,3468.6,3467.3,5.29627999]
[1718375572228,3.0,3468.7,3467.4,1.4911114]
[1718375572458,3.0,3468.7,3467.4,4.31743514]
[1718375572668,3.0,3468.7,3467.5,2.88389]
[1718375572834,3.0,3469.6,3468.3,2.88322]
[1718375573035,3.0,3469.6,3468.5,2.2572]
[1718375573036,0.0720645,3469.5,3468.5,2.2572]
[1718375573241,1.50550964,3469.5,3468.5,2.2572]
[1718375573859,1.50550964,3469.5,3467.6,1.43344514]
[1718375573860,2.88264,3469.1,3467.5,5.14109]
[1718375574057,3.0,3469.2,3467.6,3.43382]
[1718375574058,0.07207767,3469.0,3467.6,3.43382]
[1718375574234,3.0,3468.7,3467.5,2.2572]
[1718375574437,0.07208862,3468.6,3467.6,0.66967439]
[1718375574669,0.07208862,3468.6,3467.6,1.06335351]
[1718375575728,0.07208862,3468.6,3467.8,2.88365]
[1718375575941,3.0,3468.7,3467.9,2.88351]
[1718375576273,6.0,3469.1,3467.8,2.88366]
[1718375576449,0.07207313,3469.0,3467.9,0.39470135]
[1718375576771,3.0,3469.5,3468.2,2.88326]
[1718375576973,3.0,3470.1,3468.6,2.883]
[1718375577135,3.0,3470.1,3468.8,2.88278]
[1718375577336,3.0,3470.1,3469.0,2.88266]
[1718375577560,3.0,3470.1,3468.9,0.77491351]
[1718375577561,3.0,3470.1,3469.1,2.88258]
[1718375577869,3.0,3470.6,3469.2,2.8825]
[1718375578073,0.07204877,3470.5,3469.4,2.88227]
[1718375578296,3.0,3471.0,3469.5,0.55]
[1718375578442,3.37203837,3471.0,3469.6,0.42897451]
[1718375578643,3.37203837,3471.0,3469.6,3.31106451]
[1718375578842,3.37203837,3471.0,3469.7,2.88203]
[1718375579044,4.80548351,3471.0,3469.6,0.42897451]
[1718375579228,3.0,3470.5,3468.8,2.4858]
[1718375579429,1.50550057,3470.4,3469.0,2.88267]
[1718375579673,1.50550057,3470.4,3468.8,5.36863]
[1718375579674,3.0,3470.1,3468.8,2.4858]
[1718375579976,3.0,3470.1,3468.9,2.88274]
[1718375580468,3.0,3470.1,3468.9,2.88275]
[1718375580674,3.0,3470.5,3468.9,2.88275]
[1718375580675,6.0,3470.5,3469.0,0.05764451]
[1718375580883,0.07205107,3470.4,3469.4,2.88233]
[1718375581085,3.0,3470.9,3469.7,2.88208]
[1718375581281,3.0,3470.9,3469.8,0.05763433]
[1718375581282,4.43344514,3470.9,3469.8,0.05763433]
[1718375581440,3.0,3469.7,3467.7,0.59879603]
[1718375581640,1.50551422,3469.6,3467.9,1.43344514]
[1718375581980,0.07206908,3469.6,3468.0,1.49110039]
[1718375582192,0.07206101,3469.9,3468.9,2.88275]
[1718375582356,1.43344514,3469.8,3468.6,2.4806]
[1718375582721,3.07206731,3469.7,3468.2,2.88333]
[1718375582857,4.50551245,3469.7,3468.4,2.88315]
[1718375583055,3.07206731,3469.7,3468.9,2.88272]
[1718375583274,0.07206731,3469.7,3468.6,2.883]
[1718375583560,1.43344514,3469.6,3468.3,0.66972751]
[1718375583766,3.0,3469.3,3468.0,2.3805]
[1718375584000,5.201,3470.0,3467.6,3.33515002]
[1718375584001,3.0,3468.9,3467.6,3.33515002]
[1718375584297,0.07207787,3468.8,3467.6,3.33515002]
[1718375584513,0.07207785,3468.7,3467.6,3.33515002]
[1718375584862,0.07207785,3468.7,3467.6,0.45135002]
[1718375585058,3.0,3468.5,3467.6,0.45135002]
[1718375585259,1.50553388,3468.4,3467.6,0.45135002]
[1718375585880,1.50553388,3468.4,3467.3,3.86283485]
[1718375585881,3.0,3468.0,3467.3,3.86283485]
[1718375586082,0.07209577,3467.9,3467.3,3.86283485]
[1718375586796,7.43344514,3468.4,3467.4,0.05767665]
[1718375587094,3.0,3468.6,3467.4,0.05767665]
[1718375587304,3.07208482,3468.6,3467.4,0.05766785]
[1718375587512,3.07208482,3468.6,3467.3,7.13319834]
[1718375587513,0.07208482,3468.6,3467.3,7.13319834]
[1718375587658,2.169,3469.2,3467.3,7.13319834]
[1718375587659,3.0,3469.3,3467.9,2.88358]
[1718375587959,0.07208004,3469.2,3468.1,2.88334]
[1718375588157,0.07208004,3469.2,3468.2,0.0576593]
[1718375588977,0.07208004,3469.2,3468.1,2.88341]
[1718375589215,0.07208004,3469.2,3468.0,3.460233]
[1718375589361,0.07208004,3469.2,3467.3,3.86283485]
[1718375589362,3.0,3468.3,3467.3,3.86283485]
[1718375589556,0.07209544,3468.2,3467.3,3.86283485]
[1718375590100,0.07209544,3468.2,3467.4,0.05767635]
[1718375590391,0.07209115,3468.6,3467.3,3.86283485]
[1718375590560,3.0,3468.4,3467.3,3.86283485]
[1718375590758,0.07209117,3468.3,3467.3,3.86283485]
[1718375590995,0.07209072,3468.2,3467.4,0.05767258]
[1718375591196,0.07209072,3468.2,3467.3,3.86283485]
[1718375591614,3.0,3468.0,3467.3,3.86283485]
[1718375591786,3.0,3468.5,3467.4,0.05767575]
[1718375592096,3.0,3468.4,3467.4,0.05767575]
[1718375592302,0.07208951,3468.3,3467.4,0.05767575]
[1718375592603,0.07208951,3468.7,3467.4,0.05767575]
[1718375592765,1.43344514,3468.6,3467.4,0.05767575]
[1718375592960,0.07208955,3468.5,3467.4,0.05767575]
[1718375593165,0.07208955,3468.5,3467.4,3.91054981]
[1718375593466,0.07208955,3468.5,3467.4,0.96888406]
[1718375593695,0.07208964,3468.5,3467.6,2.88383]
[1718375593862,0.07207987,3468.9,3467.8,2.88364]
[1718375594061,0.37928786,3468.9,3467.6,2.88383]
[1718375594403,3.0,3468.7,3467.4,3.85281406]
[1718375594590,3.0,3468.3,3467.3,3.86283485]
[1718375594785,0.07209549,3468.2,3467.3,3.86283485]
[1718375594994,3.0,3468.7,3467.5,2.88392]
[1718375595314,3.0,3469.3,3468.1,2.88337]
[1718375595457,4.50552324,3469.2,3467.7,2.88371]
[1718375595660,3.45055232,3469.1,3467.7,0.89321251]
[1718375595864,0.07207809,3469.0,3468.0,2.8835]
[1718375596120,0.07207809,3469.0,3468.2,2.88331]
[1718375596463,0.07207453,3469.4,3468.3,2.88325]
[1718375596660,1.50551967,3469.4,3468.3,2.88325]
[1718375597302,4.50551967,3469.4,3468.1,2.88341]
[1718375597478,0.75055197,3469.3,3468.1,3.977916]
[1718375597680,0.07207451,3469.2,3468.1,3.977916]
[1718375597866,0.07207451,3469.2,3468.3,2.88324]
[1718375598067,0.07207451,3469.2,3468.1,1.094506]
[1718375598339,0.07207451,3469.2,3468.3,2.88318]
[1718375598624,0.07207451,3469.2,3468.4,3.2808686]
[1718375598965,0.07207451,3469.2,3468.1,1.094506]
[1718375599290,0.07207451,3469.2,3467.9,5.17807]
[1718375599291,3.0,3469.0,3467.9,5.17807]
[1718375599494,0.07207804,3468.9,3467.9,5.17807]
[1718375599676,0.07207804,3468.9,3468.2,2.88334]
[1718375599881,0.07207252,3469.3,3468.4,2.88315]
[1718375600080,3.0,3469.8,3468.7,2.88291]
[1718375600288,0.07206188,3469.7,3468.9,2.88275]
[1718375600464,0.07206077,3470.1,3469.0,2.88267]
[1718375600693,1.50550591,3470.1,3469.0,2.88267]
[1718375600935,1.50550591,3470.1,3469.1,2.88258]
[1718375601136,0.07206077,3470.1,3469.0,2.88267]
[1718375601473,3.0,3470.6,3469.2,0.05764662]
[1718375601755,3.0,3470.6,3469.1,0.57983346]
[1718375601756,3.0,3470.2,3468.9,2.3333]
[1718375601919,0.07205099,3470.1,3469.6,2.88212]
[1718375602124,3.0,3470.7,3469.5,2.88225]
[1718375602125,0.07204753,3470.6,3469.5,2.88225]
[1718375602337,0.07204753,3470.6,3469.6,2.88213]
[1718375602557,0.07204753,3470.6,3469.7,2.88208]
[1718375602860,0.07204383,3470.9,3470.0,2.88184]
[1718375603014,0.0720386,3471.3,3470.1,2.88173]
[1718375603223,1.43344514,3471.2,3470.0,2.88184]
[1718375603458,1.43344514,3471.2,3469.9,2.8819]
[1718375603459,0.07203673,3471.1,3469.9,2.8819]
[1718375603625,3.0,3470.9,3469.8,0.576424]
[1718375603963,0.37924564,3470.8,3469.6,2.88217]
[1718375604171,1.50548731,3470.7,3469.1,2.88255]
[1718375604314,3.0,3470.2,3468.4,3.67349206]
[1718375604643,1.50550278,3470.1,3468.4,6.55665206]
[1718375604953,1.50550278,3470.1,3468.7,3.48171603]
[1718375605256,1.50550278,3470.1,3468.7,0.59879603]
[1718375605560,4.50550278,3470.1,3468.7,0.59879603]
[1718375606058,3.0,3469.8,3468.7,0.59879603]
[1718375606356,5.09370662,3469.7,3468.7,0.59879603]
[1718375606515,3.66026148,3469.7,3468.8,2.88281]
[1718375606715,3.0,3469.7,3468.9,2.88271]
[1718375606918,3.0,3470.1,3469.1,2.88258]
[1718375607180,0.30720367,3470.8,3469.2,3.22208632]
[1718375607340,0.07204191,3470.7,3469.3,4.60073353]
[1718375607537,0.07203672,3471.2,3470.0,2.88181]
[1718375608234,0.07203672,3471.2,3470.1,2.88175]
[1718375608762,0.07203672,3471.2,3470.3,2.88156]
[1718375608968,0.07203302,3471.6,3470.2,2.8816]
[1718375609166,1.43344514,3471.5,3470.3,0.34578511]
[1718375609464,0.07203141,3471.4,3470.3,0.34578511]
[1718375609662,1.50547655,3471.4,3470.3,0.34578511]
[1718375609962,1.50547655,3471.4,3470.5,2.88134]
[1718375609963,0.07203141,3471.4,3470.5,2.88134]
[1718375610148,0.0720265,3471.8,3470.6,3.721634]
[1718375610354,1.50547115,3471.7,3470.6,3.721634]
[1718375610727,1.50547115,3471.7,3470.6,0.840304]
[1718375610963,1.50547115,3471.7,3470.4,2.88144]
[1718375611168,3.0,3471.4,3469.7,2.3915]
[1718375611338,3.0,3470.9,3469.3,2.88241]
[1718375611657,4.38666594,3470.8,3469.1,2.3915]
[1718375611967,4.38666594,3470.8,3469.1,5.801522]
[1718375611968,0.81071566,3470.7,3469.1,5.801522]
[1718375612167,2.88151,3470.4,3469.1,0.527432]
[1718375612371,1.50550457,3470.3,3469.2,2.9401347]
[1718375612527,0.07205243,3470.2,3469.5,2.88217]
[1718375612869,0.07204677,3470.4,3469.1,0.527432]
[1718375613183,0.06260372,3470.3,3469.2,0.5141072]
[1718375613331,0.07204912,3470.2,3469.4,2.88232]
[1718375614160,3.07204886,3470.6,3469.4,2.88232]
[1718375614347,1.505494,3470.6,3469.4,2.88232]
[1718375614546,1.505494,3470.6,3469.3,2.88241]
[1718375614752,0.52441606,3470.5,3469.4,2.88233]
[1718375614960,0.07204887,3470.4,3469.4,2.88233]
[1718375615236,3.0,3471.2,3469.7,4.61307]
[1718375615454,0.07203168,3471.1,3469.8,1.43344514]
[1718375615658,0.02119781,3471.0,3470.0,2.8818]
[1718375615969,0.02119781,3471.0,3470.2,2.88166]
[1718375616128,0.07203165,3470.9,3470.1,2.88174]
[1718375616329,0.02119781,3470.8,3470.1,2.88174]
[1718375616535,0.02119781,3470.8,3470.0,2.88179]